[Event "Titled Tuesday Blitz March 22 Late 2022"]
[White "Ibarra Jerez, Jose Carlos"]
[Black "Mikhalsky, Vladimir"]
[WhiteFideId "2226332"]
[BlackFideId "14144352"]
[WhiteElo "2626"]
[BlackElo "2301"]
[Result "1-0"]
[Round "08"]
[TimeControl "180+1"]
[Date "2022.03.22"]
[WhiteClock "0:00:07"]
[BlackClock "0:00:02"]

1. d4 {[%clk 0:03:00]}  Nf6 {[%clk 0:02:59]} 2. Nc3 {[%clk 0:02:59]}  g6 {[%clk 0:02:57]} 3. e4 {[%clk 0:02:59]}  d6 {[%clk 0:02:57]} 4. Bg5 {[%clk 0:02:59]}  Bg7 {[%clk 0:02:57]} 5. e5 {[%clk 0:02:56]}  Nfd7 {[%clk 0:02:49]} 6. exd6 {[%clk 0:02:54]}  cxd6 {[%clk 0:02:48]} 7. Qd2 {[%clk 0:02:53]}  Nc6 {[%clk 0:02:44]} 8. Nf3 {[%clk 0:02:53]}  h6 {[%clk 0:02:43]} 9. Be3 {[%clk 0:02:47]}  Nf6 {[%clk 0:02:41]} 10. d5 {[%clk 0:02:45]}  Nb4 {[%clk 0:02:34]} 11. a3 {[%clk 0:02:40]}  Na6 {[%clk 0:02:34]} 12. Bc4 {[%clk 0:02:31]}  Nc5 {[%clk 0:02:19]} 13. O-O {[%clk 0:02:29]}  a6 {[%clk 0:02:12]} 14. a4 {[%clk 0:02:24]}  Nce4 {[%clk 0:02:08]} 15. Nxe4 {[%clk 0:02:22]}  Nxe4 {[%clk 0:02:08]} 16. Qb4 {[%clk 0:02:17]}  O-O {[%clk 0:02:04]} 17. Rfe1 {[%clk 0:02:15]}  Nc5 {[%clk 0:01:51]} 18. a5 {[%clk 0:02:13]}  Bf5 {[%clk 0:01:48]} 19. Nd4 {[%clk 0:02:09]}  Bd7 {[%clk 0:01:46]} 20. Qd2 {[%clk 0:02:01]}  Kh7 {[%clk 0:01:40]} 21. b4 {[%clk 0:01:59]}  Ne4 {[%clk 0:01:40]} 22. Qd3 {[%clk 0:01:57]}  Nf6 {[%clk 0:01:35]} 23. Bb3 {[%clk 0:01:53]}  Ng4 {[%clk 0:01:30]} 24. Bd2 {[%clk 0:01:45]}  Ne5 {[%clk 0:01:14]} 25. Qe2 {[%clk 0:01:33]}  Rc8 {[%clk 0:01:14]} 26. c3 {[%clk 0:01:28]}  Re8 {[%clk 0:01:05]} 27. h3 {[%clk 0:01:28]}  Qc7 {[%clk 0:00:58]} 28. c4 {[%clk 0:00:50]}  Nxc4 {[%clk 0:00:54]} 29. Rac1 {[%clk 0:00:50]}  Bb5 {[%clk 0:00:54]} 30. Nxb5 {[%clk 0:00:36]}  axb5 {[%clk 0:00:53]} 31. h4 {[%clk 0:00:34]}  e6 {[%clk 0:00:46]} 32. dxe6 {[%clk 0:00:30]}  Rxe6 {[%clk 0:00:45]} 33. Qd3 {[%clk 0:00:30]}  Rxe1+ {[%clk 0:00:37]} 34. Bxe1 {[%clk 0:00:31]}  Qe7 {[%clk 0:00:33]} 35. Qd5 {[%clk 0:00:15]}  Ne3 {[%clk 0:00:28]} 36. Qd2 {[%clk 0:00:14]}  Rxc1 {[%clk 0:00:27]} 37. Qxc1 {[%clk 0:00:15]}  Nc4 {[%clk 0:00:25]} 38. Qd1 {[%clk 0:00:15]}  d5 {[%clk 0:00:24]} 39. f3 {[%clk 0:00:12]}  Qe3+ {[%clk 0:00:21]} 40. Bf2 {[%clk 0:00:11]}  Qe5 {[%clk 0:00:18]} 41. h5 {[%clk 0:00:11]}  Qxh5 {[%clk 0:00:17]} 42. Qd3 {[%clk 0:00:10]}  Qe5 {[%clk 0:00:17]} 43. Bc2 {[%clk 0:00:09]}  Qa1+ {[%clk 0:00:16]} 44. Kh2 {[%clk 0:00:09]}  Qe5+ {[%clk 0:00:16]} 45. g3 {[%clk 0:00:09]}  h5 {[%clk 0:00:15]} 46. Kg2 {[%clk 0:00:10]}  Qe6 {[%clk 0:00:15]} 47. f4 {[%clk 0:00:10]}  Qd6 {[%clk 0:00:14]} 48. Qf3 {[%clk 0:00:10]}  Qxb4 {[%clk 0:00:13]} 49. Qxh5+ {[%clk 0:00:10]}  Kg8 {[%clk 0:00:13]} 50. Qxd5 {[%clk 0:00:10]}  Qd6 {[%clk 0:00:09]} 51. Qxb7 {[%clk 0:00:09]}  Nd2 {[%clk 0:00:08]} 52. Qxb5 {[%clk 0:00:06]}  Qc7 {[%clk 0:00:06]} 53. Qd3 {[%clk 0:00:06]}  Nc4 {[%clk 0:00:05]} 54. Qf3 {[%clk 0:00:04]}  Nxa5 {[%clk 0:00:04]} 55. Be4 {[%clk 0:00:04]}  Nc4 {[%clk 0:00:04]} 56. Bd5 {[%clk 0:00:05]}  Nd6 {[%clk 0:00:04]} 57. Qd3 {[%clk 0:00:05]}  Nf5 {[%clk 0:00:04]} 58. Qe4 {[%clk 0:00:04]}  Qe7 {[%clk 0:00:04]} 59. Qc4 {[%clk 0:00:04]}  Qf6 {[%clk 0:00:04]} 60. Qc8+ {[%clk 0:00:04]}  Bf8 {[%clk 0:00:04]} 61. Qc4 {[%clk 0:00:04]}  Nd6 {[%clk 0:00:04]} 62. Qd3 {[%clk 0:00:05]}  Nf5 {[%clk 0:00:04]} 63. Bb3 {[%clk 0:00:05]}  Ne7 {[%clk 0:00:04]} 64. Bd4 {[%clk 0:00:05]}  Qc6+ {[%clk 0:00:04]} 65. Kh2 {[%clk 0:00:06]}  Nf5 {[%clk 0:00:04]} 66. Bf2 {[%clk 0:00:06]}  Qd6 {[%clk 0:00:04]} 67. Bd5 {[%clk 0:00:06]}  Qe7 {[%clk 0:00:04]} 68. Be4 {[%clk 0:00:06]}  Qd6 {[%clk 0:00:04]} 69. Bxf5 {[%clk 0:00:06]}  gxf5 {[%clk 0:00:04]} 70. Qxf5 {[%clk 0:00:06]}  Qh6+ {[%clk 0:00:05]} 71. Kg2 {[%clk 0:00:07]}  Qg6 {[%clk 0:00:05]} 72. Qe5 {[%clk 0:00:07]}  Qe6 {[%clk 0:00:05]} 73. Qg5+ {[%clk 0:00:07]}  Qg6 {[%clk 0:00:05]} 74. Qd8 {[%clk 0:00:07]}  Qg7 {[%clk 0:00:05]} 75. Bc5 {[%clk 0:00:06]}  Qb2+ {[%clk 0:00:04]} 76. Kh3 {[%clk 0:00:05]}  Qh8+ {[%clk 0:00:04]} 77. Kg4 {[%clk 0:00:06]}  Qg7+ {[%clk 0:00:04]} 78. Kh3 {[%clk 0:00:04]}  Qh8+ {[%clk 0:00:04]} 79. Kg2 {[%clk 0:00:04]}  Qb2+ {[%clk 0:00:04]} 80. Bf2 {[%clk 0:00:05]}  Qg7 {[%clk 0:00:03]} 81. Qd5 {[%clk 0:00:05]}  Qg6 {[%clk 0:00:03]} 82. Bd4 {[%clk 0:00:04]}  Qe6 {[%clk 0:00:03]} 83. Qg5+ {[%clk 0:00:04]}  Qg6 {[%clk 0:00:03]} 84. Qe5 {[%clk 0:00:04]}  Qh7 {[%clk 0:00:03]} 85. Qf6 {[%clk 0:00:04]}  Qc2+ {[%clk 0:00:02]} 86. Kh3 {[%clk 0:00:04]}  Qh7+ {[%clk 0:00:02]} 87. Kg4 {[%clk 0:00:05]}  Qg6+ {[%clk 0:00:01]} 88. Qxg6+ {[%clk 0:00:04]}  fxg6 {[%clk 0:00:01]} 89. Kg5 {[%clk 0:00:04]}  Kf7 {[%clk 0:00:02]} 90. Bf6 {[%clk 0:00:04]}  Bd6 {[%clk 0:00:02]} 91. Be5 {[%clk 0:00:04]}  Bc5 {[%clk 0:00:02]} 92. Kh6 {[%clk 0:00:05]}  Bb4 {[%clk 0:00:02]} 93. Kh7 {[%clk 0:00:05]}  Ba3 {[%clk 0:00:02]} 94. g4 {[%clk 0:00:05]}  Bb4 {[%clk 0:00:02]} 95. Bd4 {[%clk 0:00:05]}  Ba3 {[%clk 0:00:02]} 96. f5 {[%clk 0:00:06]}  gxf5 {[%clk 0:00:02]} 97. g5 {[%clk 0:00:06]}  Bf8 {[%clk 0:00:02]} 98. g6+ {[%clk 0:00:07]}  Ke6 {[%clk 0:00:02]} 99. Be3 {[%clk 0:00:07]}  f4 {[%clk 0:00:02]} 100. Bxf4 {[%clk 0:00:07]}  Kf5 {[%clk 0:00:02]} 101. Bh6 {[%clk 0:00:07]} 1-0


[Site "https://www.chess.com"]

[Event "Titled Tuesday Blitz March 22 Late 2022"]
[White "Janturin, Artur"]
[Black "Petesch, Gabriel"]
[WhiteFideId "4130022"]
[BlackFideId "2032465"]
[WhiteElo "2345"]
[BlackElo "2374"]
[Result "0-1"]
[Round "08"]
[TimeControl "180+1"]
[Date "2022.03.22"]
[WhiteClock "0:00:01"]
[BlackClock "0:00:05"]

1. b3 {[%clk 0:03:00]}  a5 {[%clk 0:02:58]} 2. Bb2 {[%clk 0:03:01]}  Nc6 {[%clk 0:02:55]} 3. a3 {[%clk 0:03:01]}  e5 {[%clk 0:02:51]} 4. e3 {[%clk 0:03:00]}  Nf6 {[%clk 0:02:50]} 5. c4 {[%clk 0:02:59]}  Be7 {[%clk 0:02:47]} 6. Nf3 {[%clk 0:02:57]}  d6 {[%clk 0:02:46]} 7. d4 {[%clk 0:02:56]}  exd4 {[%clk 0:02:46]} 8. Nxd4 {[%clk 0:02:56]}  O-O {[%clk 0:02:46]} 9. Be2 {[%clk 0:02:56]}  Nxd4 {[%clk 0:02:44]} 10. Qxd4 {[%clk 0:02:55]}  b6 {[%clk 0:02:35]} 11. Bf3 {[%clk 0:02:54]}  Rb8 {[%clk 0:02:25]} 12. Nc3 {[%clk 0:02:51]}  Be6 {[%clk 0:02:19]} 13. O-O {[%clk 0:02:47]}  Qd7 {[%clk 0:02:05]} 14. Rac1 {[%clk 0:02:41]}  Rfd8 {[%clk 0:02:00]} 15. Rfd1 {[%clk 0:02:39]}  Ne8 {[%clk 0:01:53]} 16. Nd5 {[%clk 0:02:35]}  Bxd5 {[%clk 0:01:52]} 17. Bxd5 {[%clk 0:02:32]}  Bf6 {[%clk 0:01:51]} 18. Qd2 {[%clk 0:02:33]}  Bxb2 {[%clk 0:01:48]} 19. Qxb2 {[%clk 0:02:34]}  c6 {[%clk 0:01:48]} 20. Bf3 {[%clk 0:02:32]}  Rbc8 {[%clk 0:01:43]} 21. b4 {[%clk 0:02:29]}  axb4 {[%clk 0:01:39]} 22. axb4 {[%clk 0:02:30]}  Qc7 {[%clk 0:01:37]} 23. c5 {[%clk 0:02:10]}  bxc5 {[%clk 0:01:37]} 24. bxc5 {[%clk 0:02:11]}  d5 {[%clk 0:01:38]} 25. e4 {[%clk 0:02:11]}  Rb8 {[%clk 0:01:27]} 26. Qc3 {[%clk 0:02:01]}  dxe4 {[%clk 0:01:09]} 27. Bxe4 {[%clk 0:02:02]}  Nf6 {[%clk 0:01:07]} 28. Bf3 {[%clk 0:01:59]}  Qf4 {[%clk 0:01:03]} 29. g3 {[%clk 0:01:52]}  Qf5 {[%clk 0:00:58]} 30. Bxc6 {[%clk 0:01:43]}  Ng4 {[%clk 0:00:55]} 31. Bf3 {[%clk 0:01:30]}  Ne5 {[%clk 0:00:49]} 32. Kg2 {[%clk 0:00:58]}  Rxd1 {[%clk 0:00:32]} 33. Bxd1 {[%clk 0:00:53]}  Nd3 {[%clk 0:00:22]} 34. Rc2 {[%clk 0:00:40]}  Qe4+ {[%clk 0:00:18]} 35. f3 {[%clk 0:00:18]}  Qe3 {[%clk 0:00:11]} 36. Be2 {[%clk 0:00:12]}  Rb3 {[%clk 0:00:08]} 37. Qxb3 {[%clk 0:00:09]}  Ne1+ {[%clk 0:00:07]} 38. Kf1 {[%clk 0:00:09]}  Qxb3 {[%clk 0:00:07]} 39. Rd2 {[%clk 0:00:05]}  g5 {[%clk 0:00:06]} 40. Kxe1 {[%clk 0:00:04]}  Qc3 {[%clk 0:00:07]} 41. Kd1 {[%clk 0:00:03]}  Qxc5 {[%clk 0:00:07]} 42. Bd3 {[%clk 0:00:02]}  Qe3 {[%clk 0:00:06]} 43. Be2 {[%clk 0:00:01]}  Kg7 {[%clk 0:00:06]} 44. Kc2 {[%clk 0:00:01]}  Qf2 {[%clk 0:00:05]} 0-1


[Site "https://www.chess.com"]

[Event "Titled Tuesday Blitz March 22 Late 2022"]
[White "Jobava, Baadur"]
[Black "Artemiev, Vladislav"]
[WhiteFideId "13601520"]
[BlackFideId "24101605"]
[WhiteElo "2617"]
[BlackElo "2811"]
[Result "0-1"]
[Round "08"]
[TimeControl "180+1"]
[Date "2022.03.22"]
[WhiteClock "0:00:06"]
[BlackClock "0:00:09"]

1. e4 {[%clk 0:03:00]}  e5 {[%clk 0:02:58]} 2. Nf3 {[%clk 0:03:00]}  Nc6 {[%clk 0:02:58]} 3. Bc4 {[%clk 0:03:00]}  Be7 {[%clk 0:02:53]} 4. d3 {[%clk 0:02:52]}  Nf6 {[%clk 0:02:53]} 5. Nc3 {[%clk 0:02:52]}  O-O {[%clk 0:02:51]} 6. a4 {[%clk 0:02:51]}  d6 {[%clk 0:02:50]} 7. h3 {[%clk 0:02:50]}  Kh8 {[%clk 0:02:40]} 8. a5 {[%clk 0:02:49]}  a6 {[%clk 0:02:38]} 9. O-O {[%clk 0:02:47]}  Ng8 {[%clk 0:02:38]} 10. d4 {[%clk 0:02:37]}  f5 {[%clk 0:02:36]} 11. dxe5 {[%clk 0:02:35]}  fxe4 {[%clk 0:02:35]} 12. Nxe4 {[%clk 0:02:34]}  Rxf3 {[%clk 0:02:07]} 13. exd6 {[%clk 0:02:28]}  cxd6 {[%clk 0:02:03]} 14. Bxg8 {[%clk 0:02:22]}  Rxh3 {[%clk 0:01:59]} 15. Bd5 {[%clk 0:02:01]}  Rh4 {[%clk 0:01:55]} 16. g3 {[%clk 0:01:58]}  Rg4 {[%clk 0:01:46]} 17. Bf4 {[%clk 0:01:40]}  Qf8 {[%clk 0:01:33]} 18. Ra3 {[%clk 0:01:34]}  Qxf4 {[%clk 0:01:30]} 19. Kg2 {[%clk 0:01:13]}  Ne5 {[%clk 0:00:53]} 20. Rh1 {[%clk 0:01:07]}  Qf5 {[%clk 0:00:43]} 21. f3 {[%clk 0:00:44]}  Rg6 {[%clk 0:00:41]} 22. Rc3 {[%clk 0:00:37]}  Be6 {[%clk 0:00:34]} 23. Bxb7 {[%clk 0:00:37]}  Rf8 {[%clk 0:00:33]} 24. Nxd6 {[%clk 0:00:30]}  Bxd6 {[%clk 0:00:21]} 25. Qxd6 {[%clk 0:00:31]}  Qf4 {[%clk 0:00:16]} 26. Kf1 {[%clk 0:00:17]}  Rxg3 {[%clk 0:00:13]} 27. Be4 {[%clk 0:00:15]}  Bg8 {[%clk 0:00:11]} 28. Rc5 {[%clk 0:00:06]}  Qxe4 {[%clk 0:00:09]} 0-1


[Site "https://www.chess.com"]

[Event "Titled Tuesday Blitz March 22 Late 2022"]
[White "Kaasen, Tor Fredrik"]
[Black "Bryakin, Mikhail"]
[WhiteFideId "1516647"]
[BlackFideId "4165314"]
[WhiteElo "2335"]
[BlackElo "2417"]
[Result "0-1"]
[Round "08"]
[TimeControl "180+1"]
[Date "2022.03.22"]
[WhiteClock "0:00:20"]
[BlackClock "0:00:16"]

1. e4 {[%clk 0:02:54]}  c5 {[%clk 0:02:58]} 2. Nf3 {[%clk 0:02:54]}  d6 {[%clk 0:02:48]} 3. d4 {[%clk 0:02:55]}  cxd4 {[%clk 0:02:48]} 4. Nxd4 {[%clk 0:02:56]}  Nf6 {[%clk 0:02:49]} 5. Nc3 {[%clk 0:02:56]}  a6 {[%clk 0:02:49]} 6. h3 {[%clk 0:02:56]}  e5 {[%clk 0:02:49]} 7. Nde2 {[%clk 0:02:56]}  b5 {[%clk 0:02:48]} 8. Ng3 {[%clk 0:02:54]}  h5 {[%clk 0:02:46]} 9. Bd3 {[%clk 0:02:54]}  h4 {[%clk 0:02:45]} 10. Nf5 {[%clk 0:02:54]}  g6 {[%clk 0:02:39]} 11. Ne3 {[%clk 0:02:53]}  Bg7 {[%clk 0:02:37]} 12. a4 {[%clk 0:02:52]}  b4 {[%clk 0:02:36]} 13. Ncd5 {[%clk 0:02:53]}  a5 {[%clk 0:02:32]} 14. Nxf6+ {[%clk 0:02:52]}  Bxf6 {[%clk 0:02:31]} 15. Bb5+ {[%clk 0:02:50]}  Kf8 {[%clk 0:02:27]} 16. Nc4 {[%clk 0:02:45]}  Be7 {[%clk 0:02:13]} 17. Be3 {[%clk 0:02:45]}  Bb7 {[%clk 0:02:00]} 18. Bb6 {[%clk 0:02:13]}  Qc8 {[%clk 0:01:54]} 19. Nxd6 {[%clk 0:02:13]}  Qe6 {[%clk 0:01:42]} 20. Bc5 {[%clk 0:02:11]}  Ba6 {[%clk 0:01:35]} 21. Qd3 {[%clk 0:01:16]}  Bxb5 {[%clk 0:01:28]} 22. Qxb5 {[%clk 0:01:17]}  Bxd6 {[%clk 0:01:10]} 23. O-O-O {[%clk 0:00:51]}  Bxc5 {[%clk 0:00:59]} 24. Qxc5+ {[%clk 0:00:52]}  Kg7 {[%clk 0:00:59]} 25. Rd6 {[%clk 0:00:52]}  Qe8 {[%clk 0:00:34]} 26. Rhd1 {[%clk 0:00:52]}  Na6 {[%clk 0:00:34]} 27. Qc4 {[%clk 0:00:47]}  Qxa4 {[%clk 0:00:31]} 28. Kb1 {[%clk 0:00:31]}  Rhc8 {[%clk 0:00:27]} 29. Qd5 {[%clk 0:00:19]}  Qxc2+ {[%clk 0:00:26]} 30. Ka1 {[%clk 0:00:19]}  Qa4+ {[%clk 0:00:25]} 31. Kb1 {[%clk 0:00:19]}  b3 {[%clk 0:00:18]} 32. Rxg6+ {[%clk 0:00:20]}  Kxg6 {[%clk 0:00:16]} 0-1


[Site "https://www.chess.com"]

[Event "Titled Tuesday Blitz March 22 Late 2022"]
[White "Kokoszczynski, Jan"]
[Black "Debray, Christopher"]
[WhiteFideId "1174460"]
[BlackFideId "630810"]
[WhiteElo "2163"]
[BlackElo "2393"]
[Result "1-0"]
[Round "08"]
[TimeControl "180+1"]
[Date "2022.03.22"]
[WhiteClock "0:01:08"]
[BlackClock "0:00:01"]

1. e4 {[%clk 0:03:00]}  e6 {[%clk 0:02:55]} 2. d4 {[%clk 0:03:00]}  d5 {[%clk 0:02:54]} 3. e5 {[%clk 0:03:01]}  c5 {[%clk 0:02:53]} 4. c3 {[%clk 0:03:01]}  Nc6 {[%clk 0:02:48]} 5. Nf3 {[%clk 0:03:01]}  Qb6 {[%clk 0:02:39]} 6. Bd3 {[%clk 0:03:00]}  Bd7 {[%clk 0:02:22]} 7. O-O {[%clk 0:02:58]}  cxd4 {[%clk 0:02:18]} 8. Re1 {[%clk 0:02:52]}  dxc3 {[%clk 0:01:59]} 9. bxc3 {[%clk 0:02:50]}  Bc5 {[%clk 0:01:55]} 10. Qe2 {[%clk 0:02:42]}  Nge7 {[%clk 0:01:50]} 11. Nbd2 {[%clk 0:02:40]}  h6 {[%clk 0:01:34]} 12. Nb3 {[%clk 0:02:40]}  O-O {[%clk 0:01:24]} 13. Rb1 {[%clk 0:02:03]}  Ng6 {[%clk 0:00:56]} 14. Nxc5 {[%clk 0:01:44]}  Qxc5 {[%clk 0:00:54]} 15. Rxb7 {[%clk 0:01:43]}  Bc8 {[%clk 0:00:45]} 16. Rb3 {[%clk 0:01:43]}  Rd8 {[%clk 0:00:30]} 17. Ba3 {[%clk 0:01:41]}  Qa5 {[%clk 0:00:25]} 18. Bd6 {[%clk 0:01:41]}  Bd7 {[%clk 0:00:17]} 19. Nd4 {[%clk 0:01:32]}  Nxd4 {[%clk 0:00:16]} 20. cxd4 {[%clk 0:01:33]}  Rac8 {[%clk 0:00:12]} 21. Reb1 {[%clk 0:01:29]}  Ba4 {[%clk 0:00:06]} 22. Bxg6 {[%clk 0:01:26]}  fxg6 {[%clk 0:00:04]} 23. Rb7 {[%clk 0:01:21]}  Bc6 {[%clk 0:00:03]} 24. Re7 {[%clk 0:01:18]}  Re8 {[%clk 0:00:02]} 25. Rxe8+ {[%clk 0:01:15]}  Rxe8 {[%clk 0:00:03]} 26. h4 {[%clk 0:01:16]}  Ba4 {[%clk 0:00:01]} 27. Qd3 {[%clk 0:01:09]}  Rc8 {[%clk 0:00:01]} 28. Qxg6 {[%clk 0:01:08]} 1-0


[Site "https://www.chess.com"]

[Event "Titled Tuesday Blitz March 22 Late 2022"]
[White "Kostiukov, Alexandr"]
[Black "Ferreira, Vitor Hugo Vieira"]
[WhiteFideId "14108100"]
[BlackFideId "2119765"]
[WhiteElo "2202"]
[BlackElo "2165"]
[Result "1-0"]
[Round "08"]
[TimeControl "180+1"]
[Date "2022.03.22"]
[WhiteClock "0:00:08"]
[BlackClock "0:00:08"]

1. g3 {[%clk 0:03:00]}  Nf6 {[%clk 0:02:59]} 2. Bg2 {[%clk 0:03:00]}  d5 {[%clk 0:03:00]} 3. d3 {[%clk 0:03:00]}  c6 {[%clk 0:03:00]} 4. e4 {[%clk 0:03:00]}  dxe4 {[%clk 0:03:00]} 5. dxe4 {[%clk 0:03:01]}  Qxd1+ {[%clk 0:03:00]} 6. Kxd1 {[%clk 0:03:02]}  e5 {[%clk 0:02:59]} 7. f3 {[%clk 0:03:02]}  Bc5 {[%clk 0:02:57]} 8. Nd2 {[%clk 0:03:01]}  Be6 {[%clk 0:02:55]} 9. Bh3 {[%clk 0:03:01]}  Ke7 {[%clk 0:02:50]} 10. Bxe6 {[%clk 0:03:00]}  Kxe6 {[%clk 0:02:51]} 11. Nh3 {[%clk 0:03:01]}  h6 {[%clk 0:02:51]} 12. Nb3 {[%clk 0:03:01]}  Bb6 {[%clk 0:02:49]} 13. a4 {[%clk 0:03:01]}  a5 {[%clk 0:02:43]} 14. Ke2 {[%clk 0:03:00]}  Na6 {[%clk 0:02:43]} 15. c3 {[%clk 0:02:57]}  Nc5 {[%clk 0:02:41]} 16. Nxc5+ {[%clk 0:02:55]}  Bxc5 {[%clk 0:02:41]} 17. Be3 {[%clk 0:02:54]}  Bxe3 {[%clk 0:02:38]} 18. Kxe3 {[%clk 0:02:55]}  Rhd8 {[%clk 0:02:38]} 19. Nf2 {[%clk 0:02:55]}  b6 {[%clk 0:02:31]} 20. Rhd1 {[%clk 0:02:51]}  Ne8 {[%clk 0:02:28]} 21. f4 {[%clk 0:02:43]}  Nd6 {[%clk 0:02:15]} 22. b3 {[%clk 0:02:39]}  exf4+ {[%clk 0:02:00]} 23. gxf4 {[%clk 0:02:39]}  f6 {[%clk 0:01:46]} 24. Rg1 {[%clk 0:02:28]}  Ra7 {[%clk 0:01:45]} 25. Rad1 {[%clk 0:02:22]}  Rad7 {[%clk 0:01:43]} 26. Nd3 {[%clk 0:01:48]}  Ne8 {[%clk 0:01:34]} 27. Rd2 {[%clk 0:01:35]}  g5 {[%clk 0:01:33]} 28. h4 {[%clk 0:01:23]}  gxh4 {[%clk 0:01:23]} 29. Rg6 {[%clk 0:01:00]}  Rg7 {[%clk 0:01:20]} 30. f5+ {[%clk 0:00:19]}  Kf7 {[%clk 0:01:18]} 31. Ne5+ {[%clk 0:00:16]}  fxe5 {[%clk 0:01:14]} 32. Rxg7+ {[%clk 0:00:15]}  Kxg7 {[%clk 0:01:09]} 33. Rxd8 {[%clk 0:00:16]}  Nf6 {[%clk 0:01:09]} 34. Rb8 {[%clk 0:00:15]}  h3 {[%clk 0:01:07]} 35. Kf3 {[%clk 0:00:15]}  h2 {[%clk 0:01:06]} 36. Kg2 {[%clk 0:00:15]}  Nxe4 {[%clk 0:01:06]} 37. Rxb6 {[%clk 0:00:14]}  c5 {[%clk 0:01:04]} 38. Rb5 {[%clk 0:00:14]}  Nxc3 {[%clk 0:01:00]} 39. Rxc5 {[%clk 0:00:13]}  Ne4 {[%clk 0:01:00]} 40. Rxe5 {[%clk 0:00:13]}  Nd2 {[%clk 0:00:55]} 41. Rxa5 {[%clk 0:00:12]}  Nxb3 {[%clk 0:00:54]} 42. Rb5 {[%clk 0:00:12]}  Nd4 {[%clk 0:00:54]} 43. Rb6 {[%clk 0:00:12]}  Nxf5 {[%clk 0:00:52]} 44. a5 {[%clk 0:00:09]}  Ng3 {[%clk 0:00:48]} 45. Kxh2 {[%clk 0:00:09]}  Nf1+ {[%clk 0:00:49]} 46. Kg1 {[%clk 0:00:09]}  Ne3 {[%clk 0:00:49]} 47. a6 {[%clk 0:00:10]}  Nd5 {[%clk 0:00:50]} 48. Rb7+ {[%clk 0:00:09]}  Kg6 {[%clk 0:00:50]} 49. a7 {[%clk 0:00:09]}  Nc7 {[%clk 0:00:49]} 50. Rxc7 {[%clk 0:00:09]}  h5 {[%clk 0:00:04]} 51. a8=Q {[%clk 0:00:10]}  Kg5 {[%clk 0:00:05]} 52. Qa4 {[%clk 0:00:07]}  Kg6 {[%clk 0:00:05]} 53. Rc5 {[%clk 0:00:07]}  Kg7 {[%clk 0:00:06]} 54. Qa6 {[%clk 0:00:07]}  Kf8 {[%clk 0:00:07]} 55. Rc7 {[%clk 0:00:08]}  Ke8 {[%clk 0:00:08]} 56. Qa8# {[%clk 0:00:08]} 1-0


[Site "https://www.chess.com"]

[Event "Titled Tuesday Blitz March 22 Late 2022"]
[White "Kozin, Yuri"]
[Black "Rostovtsev, Dmitry"]
[WhiteFideId "4129920"]
[BlackFideId "34278320"]
[WhiteElo "2549"]
[BlackElo "2359"]
[Result "0-1"]
[Round "08"]
[TimeControl "180+1"]
[Date "2022.03.22"]
[WhiteClock "0:00:21"]
[BlackClock "0:00:22"]

1. e4 {[%clk 0:03:00]}  e5 {[%clk 0:02:56]} 2. Nf3 {[%clk 0:03:00]}  Nc6 {[%clk 0:02:55]} 3. Bb5 {[%clk 0:03:01]}  a6 {[%clk 0:02:53]} 4. Ba4 {[%clk 0:03:01]}  Nf6 {[%clk 0:02:53]} 5. O-O {[%clk 0:03:01]}  Be7 {[%clk 0:02:51]} 6. Re1 {[%clk 0:03:02]}  b5 {[%clk 0:02:51]} 7. Bb3 {[%clk 0:03:02]}  d6 {[%clk 0:02:52]} 8. c3 {[%clk 0:03:02]}  O-O {[%clk 0:02:52]} 9. h3 {[%clk 0:03:02]}  Bb7 {[%clk 0:02:51]} 10. d4 {[%clk 0:03:02]}  Re8 {[%clk 0:02:51]} 11. Ng5 {[%clk 0:02:59]}  Rf8 {[%clk 0:02:51]} 12. Nf3 {[%clk 0:03:00]}  h6 {[%clk 0:02:48]} 13. a4 {[%clk 0:02:53]}  Re8 {[%clk 0:02:48]} 14. Na3 {[%clk 0:02:48]}  Bf8 {[%clk 0:02:43]} 15. d5 {[%clk 0:02:45]}  Ne7 {[%clk 0:02:41]} 16. axb5 {[%clk 0:02:44]}  axb5 {[%clk 0:02:41]} 17. Bd2 {[%clk 0:02:40]}  c6 {[%clk 0:02:40]} 18. dxc6 {[%clk 0:02:37]}  Bxc6 {[%clk 0:02:40]} 19. Qe2 {[%clk 0:02:29]}  Nxe4 {[%clk 0:02:18]} 20. Nxb5 {[%clk 0:02:26]}  Qb6 {[%clk 0:02:10]} 21. c4 {[%clk 0:02:08]}  Nxd2 {[%clk 0:02:10]} 22. Nxd2 {[%clk 0:02:08]}  Bxb5 {[%clk 0:02:06]} 23. cxb5 {[%clk 0:02:07]}  Ng6 {[%clk 0:01:21]} 24. Bxf7+ {[%clk 0:02:03]}  Kxf7 {[%clk 0:00:43]} 25. Qf3+ {[%clk 0:02:03]}  Nf4 {[%clk 0:00:41]} 26. Rxa8 {[%clk 0:02:01]}  Rxa8 {[%clk 0:00:42]} 27. Qxa8 {[%clk 0:02:01]}  Qxb5 {[%clk 0:00:43]} 28. Qa2+ {[%clk 0:01:40]}  Kg6 {[%clk 0:00:39]} 29. g3 {[%clk 0:01:03]}  Nxh3+ {[%clk 0:00:33]} 30. Kh2 {[%clk 0:00:57]}  Ng5 {[%clk 0:00:34]} 31. Re3 {[%clk 0:00:46]}  Be7 {[%clk 0:00:30]} 32. f4 {[%clk 0:00:45]}  exf4 {[%clk 0:00:24]} 33. Rxe7 {[%clk 0:00:34]}  Kf6 {[%clk 0:00:23]} 34. Re8 {[%clk 0:00:25]}  Qxe8 {[%clk 0:00:21]} 35. gxf4 {[%clk 0:00:24]}  Qe2+ {[%clk 0:00:21]} 36. Kg3 {[%clk 0:00:24]}  Qe3+ {[%clk 0:00:21]} 37. Kh2 {[%clk 0:00:21]}  Qxd2+ {[%clk 0:00:22]} 0-1


[Site "https://www.chess.com"]

[Event "Titled Tuesday Blitz March 22 Late 2022"]
[White "Kujawski, Adam"]
[Black "Halkias, Stelios"]
[WhiteFideId "1100920"]
[BlackFideId "4201809"]
[WhiteElo "2053"]
[BlackElo "2453"]
[Result "0-1"]
[Round "08"]
[TimeControl "180+1"]
[Date "2022.03.22"]
[WhiteClock "0:00:12"]
[BlackClock "0:01:01"]

1. e4 {[%clk 0:02:59]}  e5 {[%clk 0:02:59]} 2. Nf3 {[%clk 0:02:59]}  Nc6 {[%clk 0:02:59]} 3. Bb5 {[%clk 0:03:00]}  a6 {[%clk 0:02:59]} 4. Ba4 {[%clk 0:03:00]}  Nf6 {[%clk 0:02:58]} 5. O-O {[%clk 0:02:59]}  Be7 {[%clk 0:02:59]} 6. Re1 {[%clk 0:02:59]}  b5 {[%clk 0:02:59]} 7. Bb3 {[%clk 0:02:58]}  d6 {[%clk 0:02:59]} 8. c3 {[%clk 0:02:58]}  O-O {[%clk 0:02:59]} 9. h3 {[%clk 0:02:58]}  Nb8 {[%clk 0:02:59]} 10. d4 {[%clk 0:02:58]}  Nbd7 {[%clk 0:03:00]} 11. c4 {[%clk 0:02:57]}  Bb7 {[%clk 0:02:54]} 12. Nc3 {[%clk 0:02:53]}  c6 {[%clk 0:02:54]} 13. Qc2 {[%clk 0:01:56]}  Rc8 {[%clk 0:02:50]} 14. Be3 {[%clk 0:01:39]}  Re8 {[%clk 0:02:40]} 15. Rad1 {[%clk 0:01:34]}  Qa5 {[%clk 0:02:34]} 16. dxe5 {[%clk 0:01:11]}  dxe5 {[%clk 0:02:24]} 17. c5 {[%clk 0:00:44]}  Nxc5 {[%clk 0:01:59]} 18. Nxe5 {[%clk 0:00:43]}  Nxb3 {[%clk 0:01:58]} 19. Qxb3 {[%clk 0:00:43]}  Rf8 {[%clk 0:01:58]} 20. Nd7 {[%clk 0:00:36]}  Nxd7 {[%clk 0:01:52]} 21. Rxd7 {[%clk 0:00:36]}  Rc7 {[%clk 0:01:52]} 22. Red1 {[%clk 0:00:26]}  Bc8 {[%clk 0:01:28]} 23. Rxe7 {[%clk 0:00:23]}  Rxe7 {[%clk 0:01:27]} 24. Bc5 {[%clk 0:00:23]}  Qc7 {[%clk 0:01:25]} 25. Qb4 {[%clk 0:00:21]}  a5 {[%clk 0:01:19]} 26. Qd4 {[%clk 0:00:20]}  Rd7 {[%clk 0:01:19]} 27. Qe3 {[%clk 0:00:20]}  Rxd1+ {[%clk 0:01:18]} 28. Nxd1 {[%clk 0:00:20]}  Rd8 {[%clk 0:01:18]} 29. Nc3 {[%clk 0:00:20]}  Re8 {[%clk 0:01:18]} 30. f3 {[%clk 0:00:19]}  a4 {[%clk 0:01:13]} 31. a3 {[%clk 0:00:19]}  Be6 {[%clk 0:01:13]} 32. Ne2 {[%clk 0:00:18]}  f6 {[%clk 0:01:08]} 33. g4 {[%clk 0:00:18]}  Bf7 {[%clk 0:01:07]} 34. Kg2 {[%clk 0:00:17]}  Qe5 {[%clk 0:01:07]} 35. Bd4 {[%clk 0:00:15]}  Qe7 {[%clk 0:01:07]} 36. Nf4 {[%clk 0:00:14]}  Rd8 {[%clk 0:01:07]} 37. Kg3 {[%clk 0:00:13]}  h6 {[%clk 0:01:03]} 38. h4 {[%clk 0:00:13]}  Qd6 {[%clk 0:01:02]} 39. h5 {[%clk 0:00:12]}  Qxd4 {[%clk 0:01:01]} 0-1


[Site "https://www.chess.com"]